Workbook

Sheet Main listing (hidden)
A1: Structure | B1: Description | C1: Asset Value for sale
A2: Marina 1 | B2: 14 covered Slips, gas dock, 2-4 uncovered, 2 gas pumps | C2: 55000
A3: Marina 2 | B3: 8 Wide/Tall Slips, 6 uncovered | C3: 55000
A4: Store | B4: Building only | C4: 40000
A5: Store Equipment | B5: Refrigerators, computer, shelving, contents | C5: 7500
A6: Swim Platform | B6: New 20x20 Swim Platform with Walkways | C6: 10000
A7: Northside Retreat | B7: 3 Bedroom Furnished Cabin on Lake with Land | C7: 60000
A8: Angler Cabin | B8: 2 Bedroom Furnished Cabin on Lake with Land | C8: 40000
A9: Captains Quarters | B9: 2 BedroomFurnished Log Cabin Suites with Kitchenettes and Land | C9: 25000
A10: Lone Star | B10: 1 Bedroom Cedar Cabin | C10: 30000
A11: Lakeview | B11: 1 Bedroom Log Cabin | C11: 30000
A12: Mariner | B12: 3 BR Furnished Manufactured Home | C12: 35000
A13: Silverado | B13: 1 Bedroom Furnished Cedar Cabin | C13: 30000
A14: Overlook Lodge | B14: 4 Bedroom Furnished Manufactured Home | C14: 75000
A15: Hideaway | B15: Studio Furnished Log Cabin | C15: 30000
A16: Happy Camper | B16: Studio Furnished Cedar Cabin | C16: 30000
A17: Owner Lodge | B17: 4 Bedroom 3 bath unfurnished Manufactured Home | C17: 85000
A18: Cabin Furnishings | C18: 50000
A19: RV Sites | B19: 6 RV Sites - 5 with septic, all with water, electric | C19: 25000
A20: Recreation and Storage Building | B20: Furnished Rec Center and Storage Building | C20: 65000
A21: Boat Storage Building | B21: 4 Slip Boat Storage | C21: 5000
A22: Storage Buildings | B22: Storage Buildings - 2 | C22: 5000
A23: Pump Houses and Equipment | B23: 3 Pump Houses, Filtration, Motors, Pumps, Storage, Pressure systems | C23: 10000
A24: Pump house equipment | B24: Motors, pumps, storage | C24: 10000
A25: 2 Pontoon Boats | B25: 2016 21 ft Suncrusiser (purchased new in summer 2017) and 2017 21 foot Suntracker (purchased new spring 2017) | C25: 40000
A26: 2 pontoon boat trailers | C26: 3000
A27: Work Boat | C27: 3000
A28: Equipment | B28: See Equipment tab in this spreadsheet. | C28: 10000
A29: Supplies | B29: Various Supplies for store, cabins, boats | C29: 2500
A30: Windmill | B30: Working Windmill tied into Electric | C30: 20000
A31: Fuel System/Tanks/Electronics | B31: 2000 gallon storage tanks, lines, electronics for pumps | C31: 24000
A32: Carport and Storm Shelter | C32: 3000
A33: Canoes and Paddle Boats | B33: 2 Canoes, 2 paddle boats, 2 kayaks, 2 Paddleboards | C33: 1000
A34: Ice Freezers | B34: 2 Ice Freezers | C34: 1000
A35: Golf Cart | B35: Golf Cart | C35: 7500
A36: Septic systems | C36: 25000
A37: Land Improvements | B37: (walls, fences, stairs, patios, driveway) | C37: =10000+15000+10000-7500 -> 27500
A38: Land | C38: 200000
C40: =SUM(C2:C39) -> 1175000

Sheet Summary
A1: FF&E SUMMARY
A4: Total Equipment | B4: Value
A5: Equipment | B5: =Equipment!D41 -> 77300 | C5: ="See worksheet"&" "&A5 -> See worksheet Equipment
A6: Cabin Furnishings | B6: ='Cabin Furnishings'!E221 -> 46175 | C6: ="See worksheet"&" "&A6 -> See worksheet Cabin Furnishings
A7: Store Equipment | B7: ='Store Equipment'!C15 -> 5375 | C7: See worksheet Store Equipment
A8: Laundry Room | B8: ='Laundry room'!D11 -> 8700 | C8: See worksheet Laundry Room
A9: Restaurant Equipment | B9: =Restaurant!D48 -> 42450 | C9: See worksheet Restaurant Equipment
A10: Other Assets | B10: ='Other Assets'!C12 -> 400500 | C10: See worksheet Other Assets
B11: =SUM(B5:B10) -> 580500
A14: Property and Improvements
A15: Buildings | B15: ---- | C15: Tax Value. See Property Appraisal tab
A16: Land | B16: ---- | C16: Tax Value. See Property Appraisal tab
B17: ='Property Appraisal'!I39 -> 1400001.1
A20: Total | B20: =B11+B17 -> 1980501.1
A25: Upgrades
A26: Docks Redone | B26: 90000 | C26: New Flotation for Marina - Caupsulated Styrofoam with new deck
A27: Water lines for city water service | B27: 40000 | C27: most properties get water from lake and need to filter and get tested
A28: 2 Generators | B28: 6000 | C28: Freshwater connection to pumphouse and to 2nd pumphouse
C29: Pumphouse 10x12 2,000 gal and 16x12 3,000 gal tanks
C30: Added generator to main pump house and
C31: 2nd generator to owners quarters and 2nd pumphouse
A32: Security System | B32: 1000 | C32: Restaurant and Store
A33: Golf Course | B33: 75000 | C33: added in 2024
A35: Total Additional Upgrades | B35: =SUM(B26:B33) -> 212000

Sheet Other Assets
A1: Other assets | C1: value
A2: Smokehouse shed $ 4000 | B2: 1 | C2: 4000
A3: Smoker $2500 | B3: 1 | C3: 2500
A4: Carport and Storm Shelter | B4: 1 | C4: 6000
A5: Wind Mill 3.5kW | B5: 1 | C5: 15000
A6: Septic systems | B6: 6 | C6: 30000
A7: RV Sites | B7: 4 | C7: 10000
A8: Marina east docks | B8: 1 | C8: 90000
A9: Marina west docks | B9: 1 | C9: 160000
A10: Swim Dock | B10: 1 | C10: 8000
A11: Miniature Golf Course | B11: 1 | C11: 75000
C12: =SUM(C2:C11) -> 400500
E19: 4

Sheet Equipment
A1: Equipment | B1: Cost | C1: qty | D1: Value
A2: 2015 SunTracker Pontoon Boat | B2: 6000 | C2: 1 | D2: 6000
A3: 2015 See Breeeze Pontoon Boat | B3: 7000 | C3: 1 | D3: 7000
A4: Sun Cruiser Pontoon Boat | B4: 18000 | C4: 1 | D4: 12000
A5: 2000 Odysey Tritoon Boat | B5: 6000 | C5: 1 | D5: 6000
A7: PUMP HOUSES & EQUIPMENT | B7: 10000 | C7: 1 | D7: 4000
A8: PUMP HOUSE EQUIPMENT | B8: 10000 | C8: 1 | D8: 4000
A9: 2 PONTOON BOAT TRAILERS | B9: 3000 | C9: 1 | D9: 4000
A10: Fuel System/Tanks/Electronics | B10: 24000 | C10: 1 | D10: 12000
A11: Canoes, kayaks and Paddle Boards | B11: 1000 | C11: 2-2-2- | D11: 1000
A12: Ice Freezers | B12: 1000 | C12: 1 | D12: 1000
A13: Villiger Club Car 8 passenger GOLF CART | B13: 12000 | C13: 2 | D13: 9000
A14: 2013 YAMAHA RHINO | B14: 5931 | C14: 1 | D14: 2000
A16: John Deer Lawn Tractor X354 | B16: 5732 | C16: 1 | D16: 3000
A17: Utility elevator by store | B17: 5000 | C17: 1 | D17: 2000
B18: =SUM(B2:B17) -> 114663 | D18: =SUM(D2:D17) -> 73000
A20: TOOLS
A21: Craftsman chain saw | C21: 1 | D21: 300
A22: Utility trailer | C22: 1 | D22: 400
A23: Circular saw | C23: 1 | D23: 100
A24: Propane deck heater | C24: 1 | D24: 100
A25: Ice chest | C25: 1 | D25: 50
A26: power washer | C26: 1 | D26: 250
A27: push lawn mower craftsman | C27: 1 | D27: 250
A28: Sthil Weedeater | C28: 1 | D28: 250
A29: airless paint spayer | C29: 1 | D29: 200
A30: fertilizer spreader | C30: 1 | D30: 50
A31: metal storage rack | C31: 7 | D31: 700
A32: plastic rack | C32: 6 | D32: 200
A33: tool cabinet | C33: 1 | D33: 200
A34: boat propellers | C34: 4 | D34: 400
A35: Various hand tools including hammers, saws, screwdrivers, wrenchs, etc | C35: 1 | D35: 500
A36: TOOL BOX | C36: 3 | D36: 150
A37: Air Compressor | B37: 300 | C37: 1 | D37: 200
D38: =SUM(D21:D37) -> 4300
C41: Total | D41: =D38+D18 -> 77300

Sheet Restaurant
A1: Equipment | B1: Cost | C1: qty | D1: Value
A2: 2 refrigerators | C2: 1 | D2: 1000
A3: Kegorator | C3: 1 | D3: 1500
A4: Frig/Freezers | C4: 2 | D4: 1000
A5: Sandwich prep machine | C5: 1 | D5: 800
A6: Box freezer | C6: 1 | D6: 500
A7: Commercial Double freezer | C7: 1 | D7: 750
A8: Oven | C8: 1 | D8: 1500
A9: Griddle | C9: 1 | D9: 400
A10: Stainless tables 4ft, 5ft, 6ft, 2ft | C10: 7 | D10: 1000
A11: Hand sink | C11: 1 | D11: 200
A12: 3 hole sink | C12: 1 | D12: 500
A13: outdoor tables and chairs | C13: 12 | D13: 1000
A14: Assorted supply's | C14: 1 | D14: 1500
A15: Venthood | C15: 1 | D15: 2000
A16: Walkin Freezer | C16: 1 | D16: 2000
A17: Rack and Shelving | C17: 5 | D17: 1200
A18: Microwave oven | C18: 1 | D18: 75
A19: Ice Maker | C19: 1 | D19: 500
A20: Ice make under counter | C20: 1 | D20: 300
A21: small under counter frig | C21: 1 | D21: 300
A22: Small merchandiser | C22: 1 | D22: 500
A23: Square terminal and KDS | C23: 1 | D23: 1000
A24: Bar glasses | C24: 1 | D24: 300
A25: Dish and glassware | C25: 1 | D25: 500
A26: pizza pans | C26: 1 | D26: 100
A27: Fryers | C27: 2 | D27: 400
A28: forks, knves, spoons | C28: 1 | D28: 200
A29: Dinning tables | C29: 8 | D29: 5000
A30: speed rack | C30: 1 | D30: 100
A31: Proofer box | C31: 1 | D31: 50
A32: bumper pool table | C32: 1 | D32: 200
A33: shuffleboard table | C33: 1 | D33: 200
A34: chairs, wood | C34: 20 | D34: 1000
A35: chairs, foldin | C35: 5 | D35: 100
A36: conveyor ovens | C36: 2 | D36: 800
A37: steam tables | C37: 2 | D37: 300
A38: bean warmer | C38: 1 | D38: 50
A39: ninja blender with 4 cups | C39: 1 | D39: 100
A40: pecan live edge bar | C40: 1 | D40: 2000
A41: bar stools | C41: 6 | D41: 300
A42: westinghouse 34" tv | C42: 1 | D42: 75
A43: vizio 64" tv | C43: 1 | D43: 150
A44: Mini Golf Pro Shop. 16x10' Building | C44: 1 | D44: 8500
A45: Frozen Margarita/Daiquiri machine | C45: 1 | D45: 1000
A46: Small Merchandiser in proshop | C46: 1 | D46: 500
A47: Mini Golf clubs, Balls, Rack, Equipement | C47: 1 | D47: 1000
D48: =SUM(D2:D47) -> 42450

Sheet Laundry room
A1: Equipment | B1: Cost | C1: qty | D1: Value
A2: Laundry Room RV value $5000 | C2: 1 | D2: 5000
A3: Deck, roof, stairs $2000 | C3: 1 | D3: 2000
A4: Washer | C4: 1 | D4: 100
A5: Water heater | C5: 1 | D5: 150
A6: Dryer | C6: 1 | D6: 100
A7: Metal Sheving | C7: 2 | D7: 100
A8: Table | C8: 1 | D8: 50
A9: Leather couch white | C9: 1 | D9: 200
A10: Sheet, towels, pillow cases, etc. | C10: 1 | D10: 1000
D11: =SUM(D2:D10) -> 8700

Sheet Store Equipment
A1: Store Equipment | C1: value
A2: SQUARE TERMINALS | C2: 400
A3: computer | C3: 100
A4: freezer | C4: 50
A5: counters | C5: 400
A6: TV | C6: 75
A7: printer | B7: 1 | C7: 100
A8: Sound System for Lounge | C8: 800
A9: WIFI nextlink router | C9: 200
A10: minnow tank and pump | C10: 1000
A11: Large drink merchandiser | B11: 1 | C11: 1500
A12: Small drink merchandiser | B12: 1 | C12: 400
A13: ice cream freezer | B13: 1 | C13: 50
A14: Racks and shelves in Store | C14: 300
C15: =SUM(C2:C14) -> 5375

Sheet Cabin Furnishings
A1: Cabin Furnatings
A2: Location | B2: Item | C2: Description | D2: Qty | E2: value
A3: Angler | B3: A/C | C3: White, Samsung window unit, (15"H x 23"W) | D3: 1 | E3: 150
A4: Angler | B4: A/C | C4: Central air | D4: 1 | E4: 3000
A5: Angler | B5: Bed | C5: Queen size w/ mattress, boxspring, wooden frame and headboard | D5: 1 | E5: 200
A6: Angler | B6: Bed | C6: Twin size w/ mattress, boxspring, and wooden frame w/ shelves | D6: 1 | E6: 75
A7: Angler | B7: Bunk-Bed | C7: Full/Twin size w/ mattress and wooden frame | D7: 1 | E7: 250
A8: Angler | B8: Chair | C8: Rocking sofa chair | D8: 1 | E8: 100
A9: Angler | B9: Chair | C9: Barstool | D9: 2 | E9: 40
A10: Angler | B10: Chimnea | C10: Smokless firepit | D10: 1 | E10: 50
A11: Angler | B11: Cooking Utensils | C11: Tongs, spatulas, large spoons (wooden and plastic), slotted spoons, whisks | D11: 1 set | E11: 30
A12: Angler | B12: Dishes | C12: Plates, bowls, cups, coffee cups | D12: 10 each | E12: 60
A13: Angler | B13: Dresser | C13: Wooden dresser | D13: 1 | E13: 100
A14: Angler | B14: Dryer | C14: White | D14: 1 | E14: 100
A15: Angler | B15: Futon | C15: Full size w/ wooden frame | D15: 1 | E15: 200
A16: Angler | B16: Grill | C16: Large weber charcoal grill | D16: 1 | E16: 100
A17: Angler | B17: Microwave | C17: White | D17: 1 | E17: 75
A18: Angler | B18: Night Stand | C18: Wooden night stand | D18: 2 | E18: 50
A19: Angler | B19: Patio Table | C19: Medium metal table w/ 3 chairs | D19: 1 | E19: 100
A20: Angler | B20: Patio Table | C20: Medium wooden table w/ 4 chairs | D20: 1 | E20: 100
A21: Angler | B21: Pots & Pans | C21: Skillets, sauce pans, stock pots, sautee pans (small and large) | D21: 1 set | E21: 50
A22: Angler | B22: Refridgerator | C22: White | D22: 1 | E22: 150
A23: Angler | B23: Silverware | C23: Spoons, forks, butter knives, steak knives | D23: 10 each | E23: 30
A24: Angler | B24: Stove | C24: White, Whirlpool | D24: 1 | E24: 300
A25: Angler | B25: Table | C25: Wooden dining table w/ 5 chairs | D25: 1 | E25: 250
A26: Angler | B26: Table | C26: Coffee table | D26: 1 | E26: 50
A27: Angler | B27: Television | C27: 39" Toshiba w/ dvd player and dish reciever | D27: 1 | E27: 150
A28: Angler | B28: Wall Decor | C28: Decorations hung in cabin | D28: ? | E28: 300
A29: Angler | B29: Washing Machine | C29: White | D29: 1 | E29: 200
A30: Captains Quarters | B30: A/C | C30: White, LG, (15"H x 23.5"W) | D30: 2 | E30: 800
A31: Captains Quarters | B31: Bed | C31: Queen size w/ mattress wooden frame mounted in place | D31: 2 | E31: 200
A32: Captains Quarters | B32: Cooking Utensils | C32: Tongs, spatulas, large spoons (plastic & wooden) slotted spoons, whisks | D32: 1 | E32: 30
A33: Captains Quarters | B33: Dishes | C33: Bowls, plates, cups, coffee cups | D33: 1 | E33: 60
A34: Captains Quarters | B34: Firepit | C34: metal firepit | D34: 1 | E34: 50
A35: Captains Quarters | B35: Grill | C35: Large charcoal grill/smoker | D35: 1 | E35: 50
A36: Captains Quarters | B36: Microwave | C36: White, GE, | D36: 1 | E36: 75
A37: Captains Quarters | B37: Microwave | C37: Silver and Black, Hamilton Beach | D37: 1 | E37: 50
A38: Captains Quarters | B38: Patio chairs | C38: Patio chairs | D38: 6 | E38: 70
A39: Captains Quarters | B39: Picnic Table | C39: Wooden picnic table | D39: 1 | E39: 50
A40: Captains Quarters | B40: Pots & Pans | C40: Skillets, sauce pans, soup pans, sautee pans (large and small) | D40: 1 set | E40: 50
A41: Captains Quarters | B41: Refridgerator | C41: Mini Frig | D41: 1 | E41: 150
A42: Captains Quarters | B42: Refridgerator | C42: Mini Frig | D42: 1 | E42: 150
A43: Captains Quarters | B43: Silverware | C43: Spoons, forks, butter knives, steak knives | D43: 6 each | E43: 30
A44: Captains Quarters | B44: Sleeper sofa | C44: Twin size pullout sleeper sofa | D44: 2 | E44: 200
A45: Captains Quarters | B45: Stove | C45: White, GE, 2 burner counter top stove | D45: 2 | E45: 300
A46: Captains Quarters | B46: Table | C46: Wooden kitchen table w/ 3 chairs | D46: 2 | E46: 300
A47: Captains Quarters | B47: Television | C47: TV | D47: 2 | E47: 150
A48: Happy Camper | B48: A/C | C48: Small AC | D48: 1 | E48: 200
A49: Happy Camper | B49: Bed | C49: Full size w/ mattress box spring frame and headboard | D49: 1 | E49: 150
A50: Happy Camper | B50: Cooking utensils | C50: Large spoons (wood & Plastic), Slotted spoon, whisk, tongs, spatula (plastic & metal) | D50: 1 Set | E50: 30
A51: Happy Camper | B51: Dishes | C51: Plates, bowls, Drinking glasses, coffee cups, | D51: 4 each | E51: 100
A52: Happy Camper | B52: Grill | C52: Large charcoal grill/smoker | D52: 1 | E52: 50
A53: Happy Camper | B53: Microwave | C53: Microwave | D53: 1 | E53: 75
A54: Happy Camper | B54: Night Stand | C54: Wooden | D54: 2 | E54: 50
A55: Happy Camper | B55: Refridgerator | C55: Mini Frig | D55: 1 | E55: 200
A56: Happy Camper | B56: Silverware | C56: Forks, Spoons, Butter Knives, Steak Knives | D56: 4 Each | E56: 30
A57: Happy Camper | B57: Sleeper Sofa | C57: Full size pullout | D57: 1 | E57: 250
A58: Happy Camper | B58: Table | C58: Wooden dining table w/ 3 chairs | D58: 1 | E58: 150
A59: Happy Camper | B59: Television | C59: 32" Westinghouse LED tv | D59: 1 | E59: 150
A60: Happy Camper | B60: Wall Decor | C60: Art and decor hanging in cabin | D60: 12 | E60: 200
A61: Hideaway | B61: A/C | C61: White, LG, Wall mounted | D61: 1 | E61: 300
A62: Hideaway | B62: Bed | C62: Full size w/ mattress box spring frame and headboard | D62: 1 | E62: 150
A63: Hideaway | B63: Cooking utensils | C63: Large spoons (wood & Plastic), Slotted spoon, whisk, tongs, spatula (plastic & metal) | D63: 1 Set | E63: 30
A64: Hideaway | B64: Dishes | C64: Plates, bowls, Drinking glasses, coffee cups, | D64: 4 each | E64: 100
A65: Hideaway | B65: Grill | C65: Large charcoal grill/smoker | D65: 1 | E65: 50
A66: Hideaway | B66: Microwave | C66: Black, Maytag, w/ Stovelight & vent | D66: 1 | E66: 75
A67: Hideaway | B67: Night Stand | C67: Wooden | D67: 2 | E67: 70
A68: Hideaway | B68: Night Stand | C68: Metal | D68: 1 | E68: 50
A69: Hideaway | B69: Picnic Table | C69: Large picnic table | D69: 1 | E69: 50
A70: Hideaway | B70: Refridgerator | C70: Black, Maytag, (61"H x 28"W x25"D) | D70: 1 | E70: 150
A71: Hideaway | B71: Silverware | C71: Forks, Spoons, Butter Knives, Steak Knives | D71: 4 Each | E71: 30
A72: Hideaway | B72: Sofa | C72: Large | D72: 1 | E72: 150
A73: Hideaway | B73: Stove | C73: Black, Armana w/ oven & broiler | D73: 1 | E73: 250
A74: Hideaway | B74: Table | C74: Wooden dining table w/ 2 chairs | D74: 1 | E74: 150
A75: Hideaway | B75: Table | C75: Metal table w/ 6 chairs | D75: 1 | E75: 200
A76: Hideaway | B76: Television | C76: 31" wall mounted Toshiba flatscreen | D76: 1 | E76: 150
A77: Hideaway | B77: Wall Decor | C77: Art and decor hanging in cabin | D77: 7 | E77: 200
A78: Lakeview | B78: A/C | C78: White, Amana, wall mounted unit (15"H x 22.5"W) | D78: 1 | E78: 300
A79: Lakeview | B79: A/C | C79: White, Frigidaire, window unit (12"H x 20"W) | D79: 1 | E79: 150
A80: Lakeview | B80: Bed | C80: Full size w/ mattress and wooden frame | D80: 1 | E80: 100
A81: Lakeview | B81: Firepit | C81: Smokless firepit | D81: 1 | E81: 50
A82: Lakeview | B82: Cooking Utensils | C82: Tongs, spatulas, large spoons (wooden and plastic) slotted spoons whisks | D82: 1 set | E82: 30
A83: Lakeview | B83: Dishes | C83: Plates, bowls, cups, coffee cups | D83: 6 each | E83: 60
A84: Lakeview | B84: Grill | C84: Large charcoal grill/smoker | D84: 1 | E84: 50
A85: Lakeview | B85: Microwave | C85: White, Hotpoint | D85: 1 | E85: 50
A86: Lakeview | B86: Night Stand | C86: small metal nightstand | D86: 1 | E86: 50
A87: Lakeview | B87: Patio Chair | C87: Patio chair | D87: 4 | E87: 50
A88: Lakeview | B88: Patio Fixture | C88: Deck w/ 3 mounted picnic benches | D88: 1 | E88: 150
A89: Lakeview | B89: Pots & Pans | C89: Skillets, sauce pans, stock pots, sautee pans (large and small) | D89: 1 set | E89: 50
A90: Lakeview | B90: Refridgerator | C90: White, Whirlpool | D90: 1 | E90: 100
A91: Lakeview | B91: Silverware | C91: Forks, spoons, butter knives, steak knives | D91: 6 each | E91: 30
A92: Lakeview | B92: Sleeper sofa | C92: Small Fold Down Vinyl white | D92: 1 | E92: 250
A93: Lakeview | B93: Stove | C93: White, Holiday w/ oven | D93: 1 | E93: 200
A94: Lakeview | B94: Table | C94: Wooden dining table w/ 4 chairs | D94: 1 | E94: 200
A95: Lakeview | B95: Television | C95: 32" LED tv | D95: 1 | E95: 150
A96: Lakeview | B96: Wall Decor | C96: Decorations hung in cabin | D96: 11 | E96: 200
A97: Lonestar | B97: A/C | C97: White, Window unit | D97: 1 | E97: 200
A98: Lonestar | B98: A/C Heat through the wall | C98: A/C Heat through the wall | D98: 1 | E98: 700
A99: Lonestar | B99: Bed | C99: Full size w/ mattress box spring frame and headboard | D99: 1 | E99: 100
A100: Lonestar | B100: Cooking utensils | C100: Large spoons (wood & Plastic), Slotted spoon, whisk, tongs, spatula (plastic & metal) | D100: 1 Set | E100: 30
A101: Lonestar | B101: Dishes | C101: Plates, bowls, Drinking glasses, coffee cups, | D101: 4 each | E101: 100
A102: Lonestar | B102: Grill | C102: Large weber charcoal grill | D102: 1 | E102: 50
A103: Lonestar | B103: Microwave | C103: Microwave | D103: 1 | E103: 50
A104: Lonestar | B104: Night Stand | C104: Wooden | D104: 2 | E104: 50
A105: Lonestar | B105: Refridgerator | C105: Black, Frigidaire, mini fridge w/ freezer (32"H x 18.5"W x 17"D) | D105: 1 | E105: 100
A106: Lonestar | B106: Silverware | C106: Forks, Spoons, Butter Knives, Steak Knives | D106: 4 Each | E106: 30
A107: Lonestar | B107: Sleeper Sofa | C107: Small Fold Down | D107: 1 | E107: 150
A108: Lonestar | B108: Table | C108: Wooden dining table w/ 3 chairs | D108: 1 | E108: 150
A109: Lonestar | B109: Television | C109: 32" LED tv | D109: 1 | E109: 150
A110: Lonestar | B110: Wall Decor | C110: Art and decor hanging in cabin | D110: 12 | E110: 200
A111: Lonestar | B111: Firepit | C111: Smokeless firepit | E111: 300
A112: Mariner | B112: A/C | C112: Central air | D112: 1 | E112: 4000
A113: Mariner | B113: Refridgerator | C113: White, Hotpoint, (64"H x 28"W x 26"D) | D113: 1 | E113: 100
A114: Mariner | B114: Stove | C114: White, Maytag w/ oven/broiler | D114: 1 | E114: 150
A115: Mariner | B115: Washing Machine and dryer | C115: white | D115: 1 | E115: 400
A116: Mariner | B116: Dish washer | C116: white | D116: 1 | E116: 200
A117: Storage | B117: 19 inch TV | C117: 19 inch TV | D117: 1 | E117: 50
A118: Storage | B118: Magnivox 19 inch TV | C118: Magnivox 19 inch TV | D118: 1 | E118: 50
A119: Storage | B119: CD Stereo | C119: CD Stereo | D119: 1 | E119: 20
A120: Storage | B120: 2 drawer file cabinet | C120: 2 drawer file cabinet | D120: 1 | E120: 20
A121: Storage | B121: metal enertainment rack | C121: metal enertainment rack | D121: 1 | E121: 20
A122: Storage | B122: couch | C122: couch | D122: 1 | E122: 40
A123: Storage | B123: recliner | C123: recliner | D123: 1 | E123: 40
A124: Storage | B124: Dresser | C124: Dresser | D124: 1 | E124: 40
A125: Storage | B125: night stand | C125: night stand | D125: 2 | E125: 20
A126: Storage | B126: microwave | C126: microwave | D126: 2 | E126: 50
A127: Storage | B127: wood entertainment center | C127: wood entertainment center | D127: 2 | E127: 50
A128: Storage | B128: Bar Rack | C128: Bar Rack | D128: 1 | E128: 50
A129: Storage | B129: Patio chair | C129: Patio chair | D129: 2 | E129: 50
A130: Storage | B130: Dinning chair | C130: Dinning chair | D130: 2 | E130: 50
A131: Storage | B131: Microwave cart | C131: Microwave cart | D131: 2 | E131: 40
A132: Storage | B132: Twin bed frame | C132: Twin bed frame | D132: 2 | E132: 40
A133: Storage | B133: Twin mattress | C133: Twin mattress | D133: 7 | E133: 40
A134: Storage | B134: Twin box spring | C134: Twin box spring | D134: 3 | E134: 40
A135: Storage | B135: Queen bed frame | C135: Queen bed frame | D135: 2 | E135: 40
A136: Storage | B136: metel Twin frame | C136: metel Twin frame | D136: 2 | E136: 40
A137: Storage | B137: assorted pitctures | C137: assorted pitctures | D137: 6 | E137: 100
A138: Storage | B138: Dinning table | C138: Dinning table | D138: 2 | E138: 200
A139: Storage | B139: Baker Rack | C139: Baker Rack | D139: 1 | E139: 50
A140: Storage | B140: Stool | C140: Stool | D140: 2 | E140: 30
A141: Storage | B141: imitation plant | C141: imitation plant | D141: 2 | E141: 20
A142: Storage | B142: Counter top | C142: Counter top | D142: 2 | E142: 40
A143: Storage | B143: lamps | C143: lamps | D143: 6 | E143: 50
A144: Storage | B144: Long blinds | C144: Long blinds | D144: 4 | E144: 50
A145: Storage | B145: portable heater | C145: portable heater | D145: 3 | E145: 75
A146: Storage | B146: Wood futon frame | C146: Wood futon frame | D146: 1 | E146: 50
A147: Storage | B147: King bed frame | C147: King bed frame | D147: 1 | E147: 50
A148: Storage | B148: King matress | C148: King matress | D148: 1 | E148: 50
A149: Storage | B149: Foosball table | C149: Foosball table | D149: 1 | E149: 200
A150: Storage | B150: assorted decore | C150: assorted decore | D150: 1 | E150: 200
A151: Overlook | B151: A/C | C151: Central air | D151: 1 | E151: 4000
A152: Overlook | B152: Bed | C152: Queen w/ metal frame and headboard, box spring and mattress | D152: 1 | E152: 200
A153: Overlook | B153: Bunk-Bed | C153: Wooden frame with drawers, Full/Twin Size mattresses | D153: 2 | E153: 500
A154: Overlook | B154: Bunk-Bed | C154: Wooden frame,Twin Size mattresses | D154: 1 | E154: 250
A155: Overlook | B155: Bunk-Bed | C155: Metal frame, Full/Twin mattresses | D155: 1 | E155: 250
A156: Overlook | B156: Chair | C156: Large sofa chair | D156: 1 | E156: 150
A157: Overlook | B157: Chair | C157: Cusioned, Wicker | D157: 1 | E157: 150
A158: Overlook | B158: China cabinet | C158: Large decorative china cabinet 6 cabinets 6 drawers | D158: 1 | E158: 200
A159: Overlook | B159: Coat rack | C159: Large coat rack w/ bench seating and storage | D159: 1 | E159: 100
A160: Overlook | B160: Dishes | C160: Plates, bowls, cups, coffee cups, | D160: 20 each | E160: 100
A161: Overlook | B161: Dishwasher | C161: White, Figidaire | D161: 1 | E161: 150
A162: Overlook | B162: Dresser | C162: Large wooden dresser | D162: 3 | E162: 100
A163: Overlook | B163: Dryer | C163: White, Roper | D163: 1 | E163: 100
A164: Overlook | B164: Entertainment center | C164: Large wooden entertainment center (80"H x100"W) 9 shelves 2 cabinets tv area | D164: 1 | E164: 300
A165: Overlook | B165: Fake plants | C165: Large | D165: 1 | E165: 30
A166: Overlook | B166: Fake plants | C166: Small | D166: 2 | E166: 30
A167: Overlook | B167: Futon | C167: Full size mattress w/ wooden frame | D167: 2 | E167: 500
A168: Overlook | B168: Grill | C168: Large Charcoal grill/smoker | D168: 1 | E168: 50
A169: Overlook | B169: Microwave | C169: White, Whirlpool w/ stove light & vent | D169: 1 | E169: 50
A170: Overlook | B170: Nightstand | C170: Wood | D170: 4 | E170: 50
A171: Overlook | B171: Patio table | C171: Metal table w/ 6 chairs | D171: 1 | E171: 50
A172: Overlook | B172: Picnic table | C172: Large picnic table | D172: 1 | E172: 50
A173: Overlook | B173: Refridgerator | C173: Metallic gray, Frigidaire (65"H x 29"W x 26"D) | D173: 1 | E173: 200
A174: Overlook | B174: Silverware | C174: Forks, spoons, butter knives, steak knives | D174: 20 each | E174: 30
A175: Overlook | B175: Stove | C175: White, Whirlpool w/ oven & broiler | D175: 1 | E175: 150
A176: Overlook | B176: Table | C176: Wooden table w/ 1 chair | D176: 1 | E176: 50
A177: Overlook | B177: Table | C177: Medium kitchen table | D177: 1 | E177: 100
A178: Overlook | B178: Table | C178: Wooden dining table w/ 2 chairs and 3 benches | D178: 1 | E178: 250
A179: Overlook | B179: Television | C179: 56" Samsung 1080p smart tv w/ dish reciever and dvd player | D179: 1 | E179: 300
A180: Overlook | B180: Wall decor | C180: Art and decor hung in cabin | D180: 23 | E180: 300
A181: Overlook | B181: Washing Machine | C181: White, Roper | D181: 1 | E181: 200
A182: Owners Home | B182: Dryer | D182: 1 | E182: 300
A183: Owners Home | B183: Washing Machine | D183: 1 | E183: 250
A184: Owners Home | B184: A/C | C184: Central | D184: 1 | E184: 4000
A185: Owners Home | B185: Dish Washer | C185: New | D185: 1 | E185: 300
A186: Owners Home | B186: Microwave | D186: 1 | E186: 100
A187: Owners Home | B187: Refrigerator | C187: New | D187: 1 | E187: 500
A188: Owners Home | B188: Stove | C188: New | D188: 1 | E188: 500
A189: Owners Home | B189: 9ft Pool Table | E189: 800
A190: Silverado | B190: A/C | C190: White, Wall mounted (24"W x 15"H) | D190: 1 | E190: 300
A191: Silverado | B191: A/C | C191: Frigidaire window unit (10.5"H x 16"W) | D191: 1 | E191: 75
A192: Silverado | B192: Bed | C192: Queen size w/ mattress box spring, wood frame and headboard | D192: 1 | E192: 200
A193: Silverado | B193: Chair | C193: Sofa chair | D193: 1 | E193: 150
A194: Silverado | B194: Cooking utensils | C194: Large spoons (wood & Plastic), Slotted spoon, whisk, tongs, spatula (plastic & metal) | D194: 1 Set | E194: 30
A195: Silverado | B195: Dishes | C195: Plates, bowls, Drinking glasses, coffee cups, | D195: 6 each | E195: 100
A196: Silverado | B196: Grill | C196: Large charcoal grill/smoker | D196: 1 | E196: 50
A197: Silverado | B197: Microwave | C197: White, GE | D197: 1 | E197: 50
A198: Silverado | B198: Night Stand | C198: Wooden | D198: 2 | E198: 50
A199: Silverado | B199: Patio Furniture | C199: Wooden chair and bench set | D199: 1 | E199: 50
A200: Silverado | B200: Refridgerator | C200: White, (57"H x 24"W x 20"D) | D200: 1 | E200: 100
... 21 more rows

Sheet Property Appraisal
B1: WISE Co. 2024 appraisal value
A2: Account No. | B2: Description | C2: Acres | E2: Land | G2: Improvement | I2: Total value | J2: Description 2 | K2: SQFT
A3: 786873 | B3: Pleasant Homes/North R2747.003.00 | C3: 0 | E3: 0 | G3: 58217 | I3: =E3+G3 -> 58217 | J3: MARINER moble home | K3: 1680 | L3: Eliminated 786873 and combined with 766748 in 2025
A4: 731573 | B4: A-23 ACH & B | C4: 0.281 | E4: 15455 | G4: 0 | I4: =E4+G4 -> 15455 | J4: Fire pit lot
A5: 766723 | B5: LOT 7 SMC LAKE SHORES | C5: 0.38 | E5: 214650 | G5: 180996 | I5: 395646 | J5: 3 Cabins (Captains quarters, Lakewiew, Pilot House), Restaurant/Lounge, 2 Marinas with 24 boat slips | K5: =408+330+500+1200 -> 2438
A6: 766724 | B6: LOT 8 SMC LAKE SHORES | C6: 0.21 | E6: 135000 | G6: 32784 | I6: 167784 | J6: 2 Cabins (Angleer and Lonestar) | K6: =854+313 -> 1167
A7: 766747 | B7: LOT 30 & 31 SMC LAKE SHORES | C7: 0.08 | E7: 4400 | G7: 9772 | I7: 14172 | J7: Mariner parking lot. Land only
A8: 766748 | B8: LOT 32 SMC LAKE SHORES | C8: 0.215 | E8: 11825 | G8: 52416 | I8: 64241 | J8: Shop and shed and land with Mariner | K8: =64+1200 -> 1264
A9: 766749 | B9: LOT 33 SMC LAKE SHORES | C9: 0.222 | E9: 12210 | G9: 32657 | I9: 44867 | J9: Silverado cabin and land | K9: 339
A10: 766752 | B10: LOT 34-36 SMC LAKE SHORES | C10: 0.623 | E10: 33492 | G10: 114171 | I10: 147663 | J10: Overlook Mobile home and Hideaway cabin and land | K10: =352+2128 -> 2480
A11: 780773 | B11: 179 PR 1735 SMC LAKE SHORES | C11: 1.096 | E11: 53737 | G11: 174788 | I11: 228525 | J11: OWNERS HOME,laundry room, smoke shed, happy camper | K11: =2128+120+240+320 -> 2808
A12: 792822 | B12: A-23 ACH & B | C12: 0.17 | E12: 9350 | G12: 5630 | I12: 14980 | J12: Canopy lot and mini golf | K12: 612
A13: 792823 | B13: A-23 ACH & B | C13: 0.17 | E13: 9350 | G13: 0 | I13: 9350 | J13: mini golf
A14: 792824 | B14: A-23 ACH & B | C14: 0.12 | E14: 6600 | G14: 0 | I14: 6600 | J14: Parking lot
A15: 792825 | B15: A-23 ACH & B | C15: 0.21 | E15: 11550 | G15: 1282 | I15: 12832 | J15: Trailer lot and shed | K15: 120
A16: 792826 | B16: A-23 ACH & B | C16: 0.29 | E16: 15950 | G16: 0 | I16: 15950 | J16: Boat Trailer lot
A17: 792827 | B17: A-23 ACH & B | C17: 0.17 | E17: 9350 | G17: 1236 | I17: 10586 | J17: Dumpster lot and shed | K17: 120
A18: 795358 | B18: A-23 ACH & B | C18: 0.33 | E18: 18150 | G18: 0 | I18: 18150 | J18: Lot next to trailer lot
C19: =SUM(C3:C18) -> 4.567 | E19: =SUM(E3:E18) -> 561069 | G19: =SUM(G3:G18) -> 663949 | I19: 1225018 | K19: =SUM(K3:K18) -> 13028
B22: WISE Co. 2025 appraisal value
A23: Account No. | B23: Description | C23: Acres | G23: 2025 Market Value | I23: Adjusted Values after protest | J23: Description 2 | K23: SQFT
A24: 731573 | B24: A-23 ACH & B | C24: 0.281 | G24: 15455 | I24: 10407 | J24: Fire pit lot
A25: 766723 | B25: LOT 7 SMC LAKE SHORES | C25: 0.38 | G25: 914919 | I25: 616053.44 | J25: 3 Cabins (Captains quarters, Lakewiew, Pilot House), Restaurant/Lounge, 2 Marinas with 24 boat slips | K25: =408+330+500+1200 -> 2438
A26: 766724 | B26: LOT 8 SMC LAKE SHORES | C26: 0.21 | G26: 314464 | I26: 211741.83 | J26: 2 Cabins (Angleer and Lonestar) | K26: =854+313 -> 1167
A27: 766747 | B27: LOT 30 & 31 SMC LAKE SHORES | C27: 0.08 | G27: 20242 | I27: 13629.79 | J27: Mariner parking lot. Includes Mariner home
A28: 766748 | B28: LOT 32 SMC LAKE SHORES | C28: 0.215 | G28: 134813 | I28: 90775.26 | J28: Shop and shed and land with Mariner | K28: =64+1200+1680 -> 2944 | L28: Eliminated 786873 and combined with 766748 in 2025
A29: 766749 | B29: LOT 33 SMC LAKE SHORES | C29: 0.222 | G29: 52400 | I29: 35283.12 | J29: Silverado cabin and land | K29: 339
A30: 766752 | B30: LOT 34-36 SMC LAKE SHORES | C30: 0.623 | G30: 254782 | I30: 171555.43 | J30: Overlook Mobile home and Hideaway cabin and land | K30: =352+2128 -> 2480
A31: 780773 | B31: 179 PR 1735 SMC LAKE SHORES | C31: 1.096 | G31: 272401 | I31: 183419.05 | J31: OWNERS HOME,laundry room, smoke shed, happy camper | K31: =2128+120+240+320 -> 2808
A32: 792822 | B32: A-23 ACH & B | C32: 0.17 | G32: 23746 | I32: 15989.18 | J32: Canopy lot and mini golf | K32: 612
A33: 792823 | B33: A-23 ACH & B | C33: 0.17 | G33: 9350 | I33: 6296 | J33: mini golf
A34: 792824 | B34: A-23 ACH & B | C34: 0.12 | G34: 6600 | I34: 4444 | J34: Parking lot
A35: 792825 | B35: A-23 ACH & B | C35: 0.21 | G35: 14113 | I35: 9503 | J35: Trailer lot and shed | K35: 120
A36: 792826 | B36: A-23 ACH & B | C36: 0.29 | G36: 15950 | I36: 10740 | J36: Boat Trailer lot
A37: 792827 | B37: A-23 ACH & B | C37: 0.17 | G37: 11796 | I37: 7943 | J37: Dumpster lot and shed | K37: 120
A38: 795358 | B38: A-23 ACH & B | C38: 0.33 | G38: 18150 | I38: 12221 | J38: Lot next to trailer lot
C39: =SUM(C24:C38) -> 4.567 | G39: =SUM(G24:G38) -> 2079181 | I39: =SUM(I24:I38) -> 1400001.1 | K39: =SUM(K24:K38) -> 13028
